bitfinex/quotes_SOLUSD_20260203
["timestamp","ask_amount","ask_price","bid_price","bid_amount"]
[1770134492789,6.4979237,102.25,102.21,20.89874761]
[1770134492977,6.4979237,102.24,102.21,14.01737502]
[1770134493178,6.4979237,102.23,102.21,14.01737502]
[1770134493379,6.4979237,102.23,102.2,31.34235659]
[1770134493380,6.88137259,102.23,102.19,20.90015202]
[1770134493676,6.50058054,102.22,102.19,4.23361407]
[1770134493880,6.50153562,102.21,102.19,11.11498666]
[1770134494080,11.10602626,102.24,102.19,11.11498666]
[1770134494390,6.50108077,102.23,102.19,11.11498666]
[1770134494587,6.50108077,102.22,102.19,11.11498666]
[1770134494787,2.00108077,102.21,102.19,11.11498666]
[1770134495088,4.22465367,102.24,102.2,16.6661084]
[1770134495266,20.88769956,102.24,102.19,20.90007111]
[1770134495778,20.88769956,102.24,102.2,6.88137259]
[1770134495972,4.22465367,102.26,102.22,6.88137259]
[1770134496177,11.10602626,102.26,102.22,6.88137259]
[1770134496595,19.2591516,102.28,102.24,6.88137259]
[1770134496774,11.10602626,102.28,102.24,6.88137259]
[1770134496975,45.32659494,102.28,102.23,11.11498666]
[1770134497174,11.10602626,102.26,102.21,16.47584854]
[1770134497377,20.88542778,102.26,102.22,16.66419395]
[1770134497688,4.22465367,102.26,102.23,6.88137259]
[1770134497871,20.88515696,102.26,102.22,16.66419395]
[1770134498376,4.22465367,102.26,102.22,16.66419395]
[1770134498895,4.22465367,102.26,102.22,41.12124736]
[1770134499191,11.10602626,102.28,102.23,11.11498666]
[1770134499393,14.0022618,102.28,102.24,16.6614622]
[1770134500080,20.88363439,102.28,102.24,6.88137259]
[1770134500284,11.10602626,102.26,102.22,6.88137259]
[1770134500488,11.10602626,102.26,102.22,16.66363089]
[1770134500680,4.22465367,102.26,102.22,16.66363089]
[1770134500886,4.22465367,102.25,102.21,16.66493634]
[1770134501083,11.10602626,102.25,102.21,9.78356375]
[1770134501279,11.10602626,102.24,102.19,11.11498666]
[1770134501471,9.78186442,102.23,102.19,20.90023296]
[1770134501669,20.88730066,102.24,102.19,20.90023296]
[1770134502490,6.88137259,102.22,102.18,9.78629415]
[1770134502695,6.88137259,102.21,102.17,45.3707996]
[1770134504099,16.66522915,102.21,102.17,20.90207381]
[1770134504275,29.04300816,102.21,102.17,9.78708715]
[1770134504476,29.06913182,102.21,102.17,16.6945834]
[1770134504688,29.06913182,102.21,102.17,9.78708715]
[1770134504979,19.32243676,102.22,102.18,6.90749625]
[1770134505199,8.19028684,102.22,102.2,6.90749625]
[1770134505375,45.3677028,102.24,102.2,6.90749625]
[1770134506097,45.3677028,102.24,102.19,16.69236284]
[1770134506994,6.56373916,102.23,102.19,16.69236284]
[1770134507194,6.56373916,102.22,102.19,16.69236284]
[1770134507394,6.56373916,102.21,102.19,16.69236284]
[1770134507701,6.56373916,102.2,102.19,9.78486659]
[1770134508186,6.56373916,102.2,102.18,14.01972542]
[1770134508386,20.91497654,102.22,102.19,9.78556888]
[1770134508587,14.00748029,102.22,102.19,9.78556888]
[1770134508975,20.91497654,102.22,102.18,20.92744635]
[1770134509595,4.22465367,102.22,102.19,9.78569331]
[1770134509900,4.22465367,102.24,102.2,11.14111032]
[1770134510082,4.22465367,102.24,102.2,6.90749625]
[1770134510288,20.91319205,102.24,102.19,45.39103692]
[1770134510596,4.30120569,102.23,102.19,45.39103692]
[1770134511897,42.35203948,102.27,102.22,11.14533874]
[1770134512103,31.48120569,102.27,102.23,6.90749625]
[1770134512301,31.48120569,102.27,102.22,6.90749625]
[1770134512302,4.30120569,102.26,102.22,6.90749625]
[1770134512479,4.30120569,102.26,102.23,6.90749625]
[1770134512879,4.30120569,102.28,102.24,6.90749625]
[1770134513288,20.74728683,102.3,102.25,6.90749625]
[1770134513689,20.74728683,102.3,102.25,16.68695337]
[1770134513889,6.90749625,102.29,102.25,16.68695337]
[1770134514090,10.97133473,102.29,102.25,9.77945712]
[1770134514892,4.06383848,102.29,102.25,16.68695337]
[1770134515098,10.97133473,102.29,102.25,9.77945712]
[1770134515298,10.97133473,102.29,102.24,28.71748277]
[1770134515299,4.06383848,102.28,102.24,16.68786732]
[1770134515603,4.06383848,102.28,102.25,16.68737311]
[1770134515818,13.84118457,102.28,102.24,16.68797954]
[1770134515995,4.06383848,102.28,102.25,9.77987776]
[1770134516194,4.06383848,102.28,102.25,16.68737401]
[1770134516500,4.06383848,102.3,102.27,6.90749625]
[1770134516701,9.77421561,102.31,102.28,6.90749625]
[1770134516999,13.83805409,102.31,102.27,6.90749625]
[1770134517498,13.83805409,102.31,102.25,38.49515681]
[1770134517499,4.06383848,102.3,102.25,38.49515681]
[1770134517707,4.06383848,102.3,102.26,11.17289755]
[1770134518003,13.83929649,102.3,102.26,20.95158309]
[1770134518207,4.06383848,102.29,102.25,6.90749625]
[1770134518380,4.06383848,102.27,102.23,6.90749625]
[1770134518885,4.06383848,102.27,102.23,11.17289755]
[1770134519085,4.06383848,102.27,102.23,4.2654013]
[1770134519281,4.06383848,102.26,102.22,6.90749625]
[1770134519483,10.97133473,102.26,102.22,16.68987189]
[1770134519683,10.97133473,102.25,102.21,16.69075739]
[1770134520086,20.75139487,102.25,102.21,9.78326114]
[1770134520311,6.5609935,102.24,102.21,9.78326114]
[1770134520488,6.5609935,102.23,102.21,9.78326114]
[1770134520687,10.62483198,102.22,102.19,6.90749625]
[1770134520887,4.06383848,102.2,102.17,9.78697908]
[1770134521088,6.5609935,102.19,102.16,9.78802454]
[1770134521407,24.71428745,102.26,102.2,4.2654013]
[1770134521703,13.8393549,102.3,102.25,6.90749625]
[1770134521915,4.06383848,102.29,102.26,6.90749625]
[1770134522102,4.06383848,102.29,102.26,16.68634312]
[1770134522304,4.06383848,102.28,102.22,29.95939206]
[1770134522494,4.06383848,102.25,102.21,6.90749625]
[1770134522696,4.06383848,102.25,102.21,16.69117184]
[1770134522918,4.06383848,102.25,102.23,6.90749625]
[1770134523108,10.97133473,102.28,102.24,6.90749625]
[1770134523493,4.06383848,102.27,102.23,6.90749625]
[1770134523701,4.06383848,102.27,102.24,6.90749625]
[1770134524124,4.06383848,102.29,102.26,6.90749625]
[1770134524504,13.83843219,102.31,102.27,6.90749625]
[1770134524703,4.06383848,102.33,102.29,6.90749625]
[1770134524907,4.26383848,102.36,102.32,6.90749625]
[1770134525096,4.26383848,102.36,102.3,4.2654013]
[1770134525097,4.26383848,102.36,102.33,6.90749625]
[1770134525518,14.03328236,102.36,102.31,4.2654013]
[1770134525852,31.32700296,102.38,102.35,6.90749625]
[1770134525853,4.06383848,102.38,102.35,6.90749625]
[1770134526196,9.96697614,102.39,102.35,6.90749625]
[1770134526197,4.26383848,102.39,102.35,6.90749625]
[1770134526398,0.2,102.39,102.38,6.90749625]
[1770134526598,0.2,102.39,102.36,4.2654013]
[1770134526900,0.2,102.39,102.37,6.90749625]
[1770134527309,4.06383848,102.41,102.38,6.90749625]
[1770134527830,13.82851417,102.41,102.37,6.90749625]
[1770134528001,13.82851417,102.41,102.38,6.90749625]
[1770134528338,13.82702419,102.43,102.39,6.90749625]
[1770134528929,20.73452044,102.43,102.39,6.90749625]
[1770134529616,4.06383848,102.43,102.4,6.90749625]
[1770134529936,4.06383848,102.41,102.37,16.67532264]
[1770134530109,10.97133473,102.41,102.37,16.67532264]
[1770134530306,10.97133473,102.43,102.38,16.67439209]
[1770134530514,10.97133473,102.42,102.37,20.94100993]
[1770134530741,10.97133473,102.41,102.37,9.76842159]
[1770134531036,10.97133473,102.41,102.37,16.67591784]
[1770134531233,10.97133473,102.41,102.37,9.76842159]
[1770134531409,10.97133473,102.41,102.37,16.67591784]
[1770134532111,20.73641378,102.41,102.36,20.94194547]
[1770134532327,10.97133473,102.39,102.35,16.6775041]
[1770134532531,10.97133473,102.38,102.33,31.33682021]
[1770134532830,6.90749625,102.37,102.33,9.77195469]
[1770134533235,6.90749625,102.37,102.33,16.67945094]
[1770134533832,4.06383848,102.38,102.34,9.77132081]
[1770134534131,9.76657876,102.39,102.35,16.67736056]
[1770134534318,20.73791349,102.39,102.34,20.94373266]
[1770134534632,4.06383848,102.41,102.37,6.90749625]
[1770134535127,20.73623902,102.41,102.37,6.90749625]
[1770134535430,4.06383848,102.41,102.37,6.90749625]
[1770134536005,4.06383848,102.41,102.35,16.67755146]
[1770134536006,10.97133473,102.4,102.35,16.67755146]
[1770134536211,20.73721317,102.4,102.35,16.67755146]
[1770134536727,10.97133473,102.39,102.35,16.67755146]
[1770134537132,10.97133473,102.39,102.34,6.90749625]
[1770134537332,20.73721317,102.4,102.36,6.90749625]
[1770134537535,4.06383848,102.37,102.33,6.90749625]
[1770134537717,4.06383848,102.37,102.33,16.67925961]
[1770134538033,10.97133473,102.36,102.32,16.68037075]
[1770134538345,4.06383848,102.32,102.27,11.17289755]
[1770134538508,10.97133473,102.3,102.26,9.77856382]
[1770134538835,6.90749625,102.28,102.24,9.78054907]
[1770134539039,10.97133473,102.29,102.25,9.77984594]
[1770134539529,10.97133473,102.29,102.24,35.62460765]
[1770134539732,4.06383848,102.31,102.26,6.90749625]
[1770134539910,10.97133473,102.31,102.26,6.90749625]
[1770134540309,4.27527085,102.33,102.22,105.40172894]
[1770134540310,4.46660567,102.27,102.23,6.90749625]
[1770134540614,6.90749625,102.28,102.23,20.9610275]
[1770134540823,11.37410192,102.28,102.23,20.9610275]
[1770134541310,11.37410192,102.28,102.24,9.7807259]
[1770134542514,11.37410192,102.3,102.25,6.90749625]
[1770134542709,11.37410192,102.29,102.24,12.26835813]
[1770134543332,11.37410192,102.28,102.24,6.90749625]
[1770134543529,11.37410192,102.28,102.23,45.41618306]
[1770134544139,11.37410192,102.28,102.24,6.90749625]
[1770134544836,11.37410192,102.28,102.24,16.68761342]
[1770134545027,11.37410192,102.28,102.24,9.78011717]
[1770134545221,11.37410192,102.28,102.24,16.68761342]
[1770134546037,21.14971588,102.3,102.25,11.17976096]
[1770134546234,21.14971588,102.3,102.26,6.90749625]
[1770134546235,11.37410192,102.3,102.26,6.90749625]
[1770134546538,4.46660567,102.3,102.26,6.90749625]
[1770134546917,4.27527085,102.33,102.29,6.90749625]
[1770134546918,14.23948709,102.33,102.29,6.90749625]
[1770134547118,4.46660567,102.33,102.3,6.90749625]
[1770134547336,21.14493295,102.35,102.3,6.90749625]
[1770134547641,27.16,102.37,102.33,6.90749625]
[1770134547642,4.46660567,102.37,102.33,6.90749625]
[1770134547829,4.46660567,102.36,102.32,6.90749625]
[1770134548023,11.37410192,102.36,102.31,11.17976096]
[1770134548227,4.46660567,102.38,102.34,6.90749625]
[1770134548538,4.46660567,102.41,102.37,6.90749625]
[1770134548943,4.46660567,102.39,102.36,16.67615361]
[1770134549116,4.46660567,102.39,102.36,6.90749625]
[1770134549319,11.37410192,102.38,102.34,6.90749625]
[1770134549524,11.37410192,102.37,102.32,16.68026625]
[1770134549824,4.46660567,102.35,102.31,16.68126542]
[1770134550126,4.46660567,102.35,102.32,16.68072648]
[1770134550328,11.37410192,102.37,102.32,16.68072648]
[1770134550546,11.37410192,102.37,102.33,6.90749625]
[1770134550728,6.90749625,102.36,102.32,16.68072648]
[1770134551217,21.14412835,102.36,102.32,9.77323023]
[1770134551414,21.14412835,102.36,102.31,20.95350052]
[1770134551819,21.14412835,102.36,102.3,24.43750564]
[1770134551820,11.37410192,102.34,102.3,16.68225192]
[1770134552014,4.46660567,102.33,102.29,16.68311565]
[1770134552224,6.90749625,102.3,102.24,27.16]
[1770134552426,116.62442974,102.36,102.24,11.17976096]
[1770134552427,6.90749625,102.28,102.24,11.17976096]
[1770134552614,11.37410192,102.26,102.22,6.90749625]
[1770134552822,11.37410192,102.26,102.23,16.68901896]
[1770134552823,4.46660567,102.26,102.23,16.68901896]
[1770134553041,4.46660567,102.28,102.24,6.90749625]
[1770134553236,4.46660567,102.28,102.26,9.77899471]
[1770134553539,14.24128575,102.31,102.27,6.90749625]
[1770134554524,4.46660567,102.31,102.27,6.90749625]
[1770134554725,11.37410192,102.31,102.27,6.90749625]
[1770134555038,11.37410192,102.29,102.24,16.68804372]
[1770134555430,9.77708251,102.28,102.24,16.68804372]
[1770134555744,21.15118443,102.28,102.23,20.9614131]
[1770134556036,4.46660567,102.25,102.21,9.78325083]
[1770134556241,4.46660567,102.25,102.21,16.69074708]
[1770134556942,4.46660567,102.25,102.22,6.90749625]
[1770134557152,4.46660567,102.27,102.23,6.90749625]
[1770134557531,11.37410192,102.25,102.2,20.96403603]
[1770134557722,11.37410192,102.24,102.19,16.69267793]
[1770134558655,11.37410192,102.24,102.2,6.90749625]
[1770134559150,4.46660567,102.24,102.2,16.69207063]
[1770134559342,11.37410192,102.26,102.21,16.69073589]
[1770134559546,4.46660567,102.26,102.22,6.90749625]
[1770134559742,21.15186737,102.28,102.24,6.90749625]
[1770134559949,14.24437112,102.28,102.24,6.90749625]
[1770134560659,4.46660567,102.24,102.16,4.27226471]
[1770134560831,11.37410192,102.21,102.17,6.90749625]
[1770134561033,4.46660567,102.21,102.17,6.90749625]
[1770134561233,6.90749625,102.22,102.17,6.90749625]
[1770134561530,16.69058737,102.22,102.18,9.78658567]
[1770134562834,21.15719304,102.22,102.18,9.78658567]
[1770134563750,11.37410192,102.21,102.16,12.26835813]
[1770134563932,9.78309112,102.22,102.15,4.27226471]
[1770134563933,11.37410192,102.2,102.15,16.69652868]
[1770134564252,11.37410192,102.2,102.15,11.17976096]
[1770134564444,38.7067502,102.22,102.16,16.54132076]
[1770134564647,21.15789096,102.22,102.17,6.90819417]
[1770134564847,35.82367535,102.26,102.21,6.90819417]
[1770134565156,4.46660567,102.24,102.19,15.14655519]
[1770134565341,4.46660567,102.24,102.2,6.90819417]
[1770134565540,4.46660567,102.24,102.21,6.90819417]
[1770134565874,4.46660567,102.24,102.2,6.90819417]
[1770134566236,4.46660567,102.24,102.21,6.90819417]
[1770134566436,4.46660567,102.28,102.23,11.18045888]
[1770134566633,4.46660567,102.28,102.25,6.90819417]
[1770134566854,4.46660567,102.34,102.28,9.77708251]
[1770134567055,4.46660567,102.31,102.26,9.77856184]
[1770134567261,11.37479984,102.3,102.25,6.90819417]
[1770134567433,4.46660567,102.3,102.26,6.90819417]
[1770134567753,4.46660567,102.31,102.27,6.90819417]
[1770134567953,4.46660567,102.31,102.28,6.90819417]
[1770134569070,14.24151213,102.31,102.27,16.68621728]
[1770134569265,21.1497063,102.31,102.27,6.90819417]
[1770134569446,11.37479984,102.3,102.25,16.6876943]
[1770134569649,11.37479984,102.3,102.26,16.68707396]
[1770134569853,4.46660567,102.3,102.27,6.90819417]
[1770134570150,25.42413097,102.32,102.28,6.90819417]
[1770134570563,4.31428133,102.31,102.27,16.68574342]
[1770134570773,11.2224755,102.31,102.26,16.68675173]
[1770134571074,4.31428133,102.31,102.27,16.68606351]
[1770134571242,4.31428133,102.31,102.25,9.63312659]
[1770134571243,4.31428133,102.3,102.26,16.68672579]
[1770134572157,11.2224755,102.3,102.26,16.68672579]
[1770134572355,4.31428133,102.3,102.26,16.68672579]
[1770134572675,4.31428133,102.3,102.27,16.68598453]
[1770134573175,4.31428133,102.3,102.27,9.77779036]
[1770134574642,14.0894948,102.3,102.26,16.686771]
[1770134575464,4.15026155,102.29,102.25,9.77940043]
[1770134575660,11.05845572,102.28,102.24,15.14117446]
[1770134575962,4.15026155,102.28,102.25,9.7798129]
[1770134576570,4.15026155,102.29,102.25,16.68800707]
[1770134576867,11.05845572,102.29,102.25,9.7798129]
[1770134577072,9.77521347,102.3,102.26,20.74147421]
[1770134578408,4.15026155,102.29,102.25,16.68769709]
[1770134578564,11.05845572,102.27,102.22,10.96259989]
[1770134578767,11.05845572,102.27,102.22,20.74490028]
[1770134578956,11.05845572,102.27,102.23,9.78166322]
[1770134579660,11.05845572,102.27,102.22,10.96259989]
[1770134579661,11.05845572,102.26,102.22,9.78239534]
[1770134579843,20.83840682,102.25,102.21,9.7836044]
[1770134580051,11.05845572,102.25,102.21,13.83801012]
[1770134580251,4.15026155,102.25,102.21,20.74620429]
[1770134580455,11.05845572,102.25,102.21,9.7836044]
[1770134580745,16.68751568,102.26,102.21,20.7459836]
[1770134580944,11.05845572,102.27,102.22,10.96259989]
[1770134581172,4.15026155,102.23,102.19,16.32346177]
[1770134581351,34.22337594,102.27,102.18,9.78648588]
[1770134581352,11.05845572,102.22,102.18,9.78648588]
[1770134581546,11.05845572,102.21,102.17,13.84162572]
[1770134581759,11.05845572,102.21,102.16,45.22124952]
[1770134581961,11.05845572,102.21,102.17,5.36086188]
[1770134582353,20.84084061,102.23,102.18,10.96259989]
[1770134582560,13.93264644,102.23,102.19,6.90819417]
[1770134582777,9.78127486,102.24,102.19,10.96259989]
[1770134583082,20.83973058,102.24,102.19,4.05440572]
[1770134583273,6.90819417,102.23,102.19,10.96259989]
[1770134583585,11.05845572,102.22,102.17,16.32346177]
[1770134583774,16.69197266,102.21,102.17,13.84151282]
[1770134584382,20.84144677,102.22,102.17,45.2187292]
[1770134584553,13.9332526,102.22,102.18,6.90819417]
[1770134584753,16.68853781,102.25,102.2,10.96259989]
[1770134584970,4.15026155,102.26,102.22,12.26905605]
[1770134585167,13.92775065,102.28,102.24,6.90819417]
[1770134585367,13.92775065,102.28,102.22,12.26905605]
[1770134585368,11.05845572,102.27,102.22,12.26905605]
[1770134585659,4.15026155,102.27,102.24,9.78090766]
[1770134585860,4.15026155,102.27,102.24,16.68910183]
[1770134586379,20.83594482,102.28,102.24,16.68910183]
[1770134586574,4.15026155,102.28,102.24,41.141371]
[1770134586777,20.83405223,102.3,102.25,6.90819417]
[1770134586961,4.15026155,102.29,102.25,6.90819417]
[1770134587280,41.12171834,102.3,102.23,16.68954457]
[1770134587281,4.15026155,102.27,102.23,16.68954457]
[1770134587467,4.15026155,102.26,102.22,26.10579651]
[1770134588068,4.15026155,102.26,102.23,6.90819417]
[1770134588480,4.15026155,102.29,102.24,16.32346177]
[1770134588687,13.92686745,102.29,102.25,6.90819417]
[1770134588984,20.83506162,102.29,102.24,16.32346177]
[1770134590069,20.83506162,102.29,102.24,26.10374825]
[1770134590985,13.92686745,102.29,102.25,6.90819417]
[1770134591188,9.77423575,102.31,102.28,6.90819417]
[1770134591587,4.15026155,102.29,102.24,9.77998747]
[1770134591880,11.05845572,102.28,102.23,16.6895902]
[1770134592184,11.05845572,102.27,102.23,9.78139603]
[1770134592377,11.05845572,102.26,102.21,12.26905605]
[1770134592683,11.05845572,102.26,102.21,20.74592821]
[1770134592982,4.15026155,102.26,102.22,16.69080369]
[1770134593188,20.838387,102.26,102.22,9.78260952]
[1770134593363,20.838387,102.26,102.21,20.74584944]
[1770134594388,11.05845572,102.24,102.2,15.14523904]
[1770134594591,6.90819417,102.24,102.2,13.83878288]
[1770134594780,11.05845572,102.24,102.2,9.78437716]
[1770134595089,16.69237829,102.21,102.17,9.78718108]
[1770134595383,16.6920438,102.21,102.17,16.69537525]
[1770134595691,11.05845572,102.2,102.16,26.11161043]
[1770134595887,11.05845572,102.2,102.16,20.75074855]
[1770134596272,16.6920438,102.21,102.17,4.05440572]
[1770134596592,6.90819417,102.2,102.16,41.16776021]
[1770134596771,6.90819417,102.2,102.16,45.22216593]
[1770134597097,4.15026155,102.21,102.17,16.32346177]
[1770134597285,4.15026155,102.21,102.17,26.11072917]
[1770134597286,13.93425253,102.21,102.17,26.11072917]
[1770134597592,4.15026155,102.2,102.16,16.69603833]
[1770134597793,11.05845572,102.2,102.16,9.78784416]
[1770134597974,11.05845572,102.2,102.15,26.11262184]
[1770134598894,4.15026155,102.17,102.13,20.9535401]
[1770134599196,20.84582008,102.18,102.14,9.78999338]
[1770134599379,20.84582008,102.18,102.13,26.31461385]
[1770134599894,20.84582008,102.18,102.14,9.79040443]
[1770134600485,13.93762591,102.18,102.14,16.6985986]
[1770134600902,20.84582008,102.18,102.13,26.31451168]
[1770134602087,10.97785875,102.17,102.13,9.99104991]
[1770134602284,10.97785875,102.16,102.13,0.2]
[1770134602475,10.97785875,102.14,102.13,0.2]
[1770134602914,10.97785875,102.14,102.12,0.1]
[1770134603078,6.90819417,102.13,102.11,0.2]
[1770134603504,16.69964762,102.13,102.11,0.2]
[1770134603885,6.90819417,102.13,102.11,0.2]
[1770134604292,10.97785875,102.13,102.11,0.2]
[1770134605487,45.24869609,102.13,102.08,26.36217375]
[1770134605799,20.7700904,102.13,102.09,9.7951051]
[1770134606177,10.97785875,102.13,102.09,5.36086188]
[1770134606382,4.06966458,102.13,102.09,16.36659724]
[1770134606994,4.06966458,102.13,102.1,9.79431295]
[1770134607201,20.7694312,102.13,102.09,15.15574544]
[1770134607400,4.06966458,102.12,102.09,15.15574544]
[1770134607702,10.97785875,102.12,102.08,16.90417016]
[1770134607892,20.77065752,102.12,102.08,9.99597599]
[1770134608502,4.06966458,102.1,102.08,0.2]
[1770134608702,10.97785875,102.1,102.08,0.2]
[1770134609083,10.97785875,102.09,102.07,0.4144201]
[1770134609505,4.06966458,102.09,102.07,0.4144201]
[1770134609807,4.06966458,102.11,102.07,21.21726957]
[1770134610186,4.27527085,102.13,102.08,16.36659724]
[1770134610187,20.76979684,102.13,102.08,16.36659724]
[1770134610389,4.06966458,102.13,102.09,6.90819417]
[1770134610586,16.69913274,102.14,102.09,11.00573536]
[1770134610791,4.06966458,102.16,102.12,6.90819417]
[1770134611003,10.97785875,102.16,102.11,11.00573536]
[1770134611201,4.06966458,102.18,102.14,6.90819417]
[1770134611490,13.85692444,102.18,102.14,6.90819417]
[1770134611690,13.85638518,102.18,102.15,6.90819417]
[1770134611894,13.85638518,102.18,102.14,16.69819436]
[1770134612093,9.78139632,102.24,102.19,4.09754119]
[1770134612388,4.06966458,102.24,102.21,6.90819417]
[1770134612601,4.06966458,102.24,102.22,6.90819417]
[1770134612910,13.84921873,102.26,102.22,6.90819417]
[1770134613109,0.2,102.29,102.25,6.90819417]
[1770134613287,0.2,102.29,102.24,9.45840307]
[1770134613487,10.97785875,102.28,102.23,16.36659724]
[1770134613906,10.97785875,102.28,102.24,9.78090766]
[1770134613907,20.75503851,102.28,102.24,9.78090766]
[1770134614214,4.06966458,102.28,102.24,16.68910183]
[1770134614394,0.2,102.29,102.25,6.90819417]
[1770134614598,4.26966458,102.29,102.25,6.90819417]
[1770134614797,0.2,102.29,102.27,6.90819417]
[1770134614999,10.97785875,102.34,102.29,4.09754119]
[1770134615307,24.42518494,102.36,102.29,4.09754119]
[1770134615308,20.7474863,102.36,102.31,6.90819417]
[1770134615690,20.7474863,102.36,102.27,12.26905605]
[1770134615691,10.97785875,102.32,102.27,12.26905605]
[1770134615890,6.90819417,102.31,102.27,15.13855718]
[1770134616092,10.97785875,102.31,102.26,20.78412526]
[1770134616299,10.97785875,102.31,102.27,9.77786807]
[1770134616505,6.90819417,102.32,102.27,20.78360343]
[1770134616805,9.97785875,102.33,102.28,11.00573536]
[1770134617006,9.97785875,102.33,102.27,46.49202043]
[1770134617007,6.90819417,102.32,102.27,46.49202043]
[1770134617208,6.90819417,102.3,102.26,13.8763242]
[1770134617717,6.90819417,102.31,102.27,9.77777121]
[1770134618327,6.90819417,102.3,102.26,13.87624038]
[1770134618526,6.90819417,102.3,102.26,9.77869919]
[1770134618819,6.90819417,102.28,102.25,9.77958306]
[1770134619301,6.90819417,102.28,102.24,20.78633061]
[1770134619799,6.90819417,102.28,102.25,9.77994917]
[1770134620000,6.90819417,102.28,102.24,13.8780781]
[1770134620306,10.97785875,102.26,102.23,9.60378227]
[1770134620510,34.21995756,102.28,102.23,9.78171477]
[1770134620713,78.15918844,102.36,102.25,11.00573536]
[1770134620908,6.90819417,102.31,102.27,6.90819417]
[1770134621308,6.90819417,102.31,102.26,11.00573536]
[1770134621604,6.90819417,102.29,102.25,16.36659724]
[1770134621922,6.90819417,102.32,102.28,6.90819417]
[1770134622118,6.90819417,102.32,102.28,16.68494902]
[1770134622504,16.68159195,102.32,102.28,9.77675485]
[1770134622723,16.68159195,102.32,102.27,20.78340689]
[1770134623129,16.68159195,102.32,102.28,9.77685551]
[1770134623436,10.97785875,102.31,102.26,6.90819417]
[1770134623597,4.27527085,102.31,102.23,13.72778177]
[1770134623801,6.90819417,102.27,102.23,30.41766774]
[1770134624115,6.90819417,102.29,102.25,20.78501001]
[1770134624702,10.97785875,102.3,102.26,6.90819417]
[1770134625102,10.97785875,102.3,102.25,13.87681584]
[1770134625103,20.75312837,102.3,102.25,45.23488776]
[1770134625428,20.75312837,102.3,102.23,14.99110246]
[1770134625429,6.90819417,102.28,102.24,9.78050893]
[1770134625636,20.75312837,102.3,102.25,20.78558419]
[1770134625928,6.90819417,102.29,102.25,20.78558419]
[1770134626500,16.67052049,102.31,102.26,10.99361111]
[1770134626714,20.74018507,102.31,102.26,10.99361111]
[1770134626912,20.74018507,102.31,102.25,34.22972658]
[1770134626913,16.67052049,102.31,102.27,10.99361111]
[1770134627199,16.67052049,102.31,102.25,39.59058846]
[1770134627200,6.89606992,102.3,102.26,6.89606992]
[1770134627611,6.89606992,102.3,102.25,50.58419957]
[1770134628118,6.89606992,102.3,102.26,6.89606992]
[1770134628318,20.74018507,102.31,102.26,10.99361111]
[1770134628518,6.89606992,102.3,102.26,4.09754119]
[1770134628703,6.89606992,102.3,102.26,10.99361111]
[1770134629104,6.89606992,102.29,102.26,4.09754119]
[1770134629312,6.89606992,102.28,102.24,13.87817129]
[1770134629619,9.77860559,102.27,102.23,13.72778177]
[1770134629825,6.89606992,102.26,102.23,13.72778177]
[1770134630200,6.89606992,102.26,102.23,9.63024058]
[1770134630508,4.35867505,102.26,102.21,4.09754119]
[1770134630708,11.25474497,102.26,102.22,14.13925278]
[1770134630915,34.2237019,102.27,102.23,21.03454391]
[1770134630916,6.89606992,102.27,102.23,21.03454391]
[1770134631106,21.03055813,102.3,102.25,4.35693089]
[1770134631310,21.03055813,102.3,102.25,11.25300081]
[1770134631511,6.89606992,102.29,102.25,11.25300081]
[1770134632225,16.67240293,102.29,102.25,21.03225751]
[1770134632725,16.67240293,102.29,102.25,14.13618759]
[1770134632918,6.89606992,102.29,102.25,14.13618759]
[1770134633230,27.16,102.32,102.25,14.13618759]
[1770134633231,38.40365566,102.32,102.27,11.24894527]
[1770134633602,48.17734152,102.32,102.27,11.24894527]
[1770134634017,28.70754189,102.33,102.28,11.24894527]
[1770134634018,25.2917182,102.33,102.28,11.24894527]
[1770134634214,25.2917182,102.33,102.28,21.02530992]
[1770134634413,6.89606992,102.32,102.28,21.02530992]
[1770134635319,18.39564828,102.33,102.22,66.43201005]
[1770134635320,4.34758574,102.29,102.25,21.02842092]
[1770134635527,11.24365566,102.29,102.26,9.77882215]
[1770134635720,6.89606992,102.29,102.26,9.77882215]
[1770134635924,6.89606992,102.3,102.26,14.1316975]
[1770134636128,11.24365566,102.31,102.27,9.77771455]
[1770134636324,21.01830549,102.31,102.27,9.77771455]
[1770134636516,6.89606992,102.3,102.26,21.02745452]
[1770134636714,11.24365566,102.3,102.26,9.77850925]
[1770134636920,6.89606992,102.29,102.25,9.77945945]
[1770134637326,6.89606992,102.29,102.25,14.1323348]
[1770134637818,11.24365566,102.29,102.25,4.35287535]
[1770134638015,6.89606992,102.27,102.23,11.24894527]
[1770134638231,6.89606992,102.27,102.24,9.78085622]
[1770134638532,21.02019371,102.29,102.24,21.02980149]
[1770134638712,21.02019371,102.29,102.25,6.89606992]
[1770134639110,21.02019371,102.29,102.24,38.58600074]
[1770134639336,6.89606992,102.28,102.24,45.48207066]
[1770134639722,21.02019371,102.29,102.24,45.48207066]
[1770134640136,16.67260797,102.29,102.25,4.35287535]
[1770134640320,11.24365566,102.31,102.27,4.35287535]
[1770134640525,11.24365566,102.35,102.3,11.24894527]
[1770134640737,11.24365566,102.36,102.32,6.89606992]
[1770134640950,21.01155257,102.38,102.33,6.89606992]